[Event "Titled Tuesday Blitz February 22 Early 2022"]
[White "Politov, Pavel Y."]
[Black "Garv Gaur"]
[WhiteFideId "24110515"]
[BlackFideId "45030839"]
[WhiteElo "2090"]
[BlackElo "1950"]
[Result "0-1"]
[Round "05"]
[TimeControl "180+1"]
[Date "2022.02.22"]
[WhiteClock "0:00:01"]
[BlackClock "0:00:37"]

1. e4 {[%clk 0:03:00]}  c6 {[%clk 0:02:59]} 2. d4 {[%clk 0:02:59]}  d5 {[%clk 0:03:00]} 3. e5 {[%clk 0:02:58]}  Bf5 {[%clk 0:03:00]} 4. g4 {[%clk 0:02:57]}  Be4 {[%clk 0:02:56]} 5. f3 {[%clk 0:02:57]}  Bg6 {[%clk 0:02:56]} 6. c3 {[%clk 0:02:38]}  e6 {[%clk 0:02:54]} 7. h4 {[%clk 0:02:23]}  h5 {[%clk 0:02:50]} 8. Bg5 {[%clk 0:02:15]}  Be7 {[%clk 0:02:42]} 9. Nh3 {[%clk 0:01:53]}  Qb6 {[%clk 0:02:23]} 10. Qd2 {[%clk 0:01:39]}  hxg4 {[%clk 0:02:12]} 11. fxg4 {[%clk 0:01:33]}  Be4 {[%clk 0:02:10]} 12. Bg2 {[%clk 0:01:28]}  Bxg2 {[%clk 0:01:58]} 13. Qxg2 {[%clk 0:01:29]}  Nd7 {[%clk 0:01:59]} 14. Bxe7 {[%clk 0:01:03]}  Nxe7 {[%clk 0:02:00]} 15. Ng5 {[%clk 0:00:59]}  Rf8 {[%clk 0:01:40]} 16. Na3 {[%clk 0:00:51]}  O-O-O {[%clk 0:01:40]} 17. Rf1 {[%clk 0:00:44]}  c5 {[%clk 0:01:34]} 18. Nxf7 {[%clk 0:00:38]}  cxd4 {[%clk 0:01:28]} 19. Nxd8 {[%clk 0:00:18]}  Rxd8 {[%clk 0:01:29]} 20. cxd4 {[%clk 0:00:15]}  Qxd4 {[%clk 0:01:26]} 21. Rc1+ {[%clk 0:00:14]}  Nc6 {[%clk 0:01:26]} 22. Qe2 {[%clk 0:00:12]}  Nxe5 {[%clk 0:01:23]} 23. Nb5 {[%clk 0:00:12]}  Nd3+ {[%clk 0:01:18]} 24. Kd2 {[%clk 0:00:11]}  Qb4+ {[%clk 0:01:09]} 25. Kxd3 {[%clk 0:00:08]}  Qxb5+ {[%clk 0:01:09]} 26. Ke3 {[%clk 0:00:08]}  Qb6+ {[%clk 0:01:04]} 27. Kf3 {[%clk 0:00:08]}  Kb8 {[%clk 0:01:02]} 28. Kg2 {[%clk 0:00:08]}  e5 {[%clk 0:01:02]} 29. Rf7 {[%clk 0:00:07]}  d4 {[%clk 0:01:00]} 30. Qe4 {[%clk 0:00:07]}  Qxb2+ {[%clk 0:00:59]} 31. Rc2 {[%clk 0:00:06]}  Qb1 {[%clk 0:00:57]} 32. Rxg7 {[%clk 0:00:05]}  Rf8 {[%clk 0:00:56]} 33. Rxb7+ {[%clk 0:00:05]}  Qxb7 {[%clk 0:00:53]} 34. Rxc6 {[%clk 0:00:04]}  Ka8 {[%clk 0:00:46]} 35. Qd5 {[%clk 0:00:02]}  d3 {[%clk 0:00:39]} 36. Qd6 {[%clk 0:00:01]}  Qb2+ {[%clk 0:00:37]} 0-1


[Site "https://www.chess.com"]

[Event "Titled Tuesday Blitz February 22 Early 2022"]
[White "Poormosavi, Seyed Kian"]
[Black "Obolenskikh, Dmitry"]
[WhiteFideId "12585807"]
[BlackFideId "4156013"]
[WhiteElo "2116"]
[BlackElo "2512"]
[Result "0-1"]
[Round "05"]
[TimeControl "180+1"]
[Date "2022.02.22"]
[WhiteClock "0:00:17"]
[BlackClock "0:00:24"]

1. e4 {[%clk 0:03:00]}  e5 {[%clk 0:02:59]} 2. Nf3 {[%clk 0:03:00]}  Nc6 {[%clk 0:03:00]} 3. c3 {[%clk 0:03:01]}  Nf6 {[%clk 0:02:59]} 4. d4 {[%clk 0:03:00]}  exd4 {[%clk 0:03:00]} 5. e5 {[%clk 0:02:57]}  Nd5 {[%clk 0:03:00]} 6. cxd4 {[%clk 0:02:56]}  d6 {[%clk 0:03:00]} 7. Nc3 {[%clk 0:02:56]}  dxe5 {[%clk 0:02:58]} 8. dxe5 {[%clk 0:02:53]}  Bb4 {[%clk 0:02:46]} 9. Bd2 {[%clk 0:02:45]}  Bg4 {[%clk 0:02:44]} 10. Bb5 {[%clk 0:02:41]}  O-O {[%clk 0:02:34]} 11. O-O {[%clk 0:02:21]}  Nxe5 {[%clk 0:01:48]} 12. Nxd5 {[%clk 0:02:20]}  Bxd2 {[%clk 0:01:47]} 13. Qxd2 {[%clk 0:02:15]}  Bxf3 {[%clk 0:01:47]} 14. Rfe1 {[%clk 0:01:52]}  f6 {[%clk 0:01:11]} 15. Rxe5 {[%clk 0:00:42]}  fxe5 {[%clk 0:01:10]} 16. Bc4 {[%clk 0:00:35]}  Bxd5 {[%clk 0:00:29]} 17. Qxd5+ {[%clk 0:00:36]}  Kh8 {[%clk 0:00:25]} 18. Qxb7 {[%clk 0:00:36]}  Rb8 {[%clk 0:00:26]} 19. Qxa7 {[%clk 0:00:35]}  Rxb2 {[%clk 0:00:26]} 20. Rf1 {[%clk 0:00:33]}  Qd4 {[%clk 0:00:25]} 21. Qa3 {[%clk 0:00:17]}  Rbxf2 {[%clk 0:00:24]} 0-1


[Site "https://www.chess.com"]

[Event "Titled Tuesday Blitz February 22 Early 2022"]
[White "Potapova, Margarita"]
[Black "Fajdetic, Hrvoje"]
[WhiteFideId "14126869"]
[BlackFideId "14501945"]
[WhiteElo "2209"]
[BlackElo "2140"]
[Result "1-0"]
[Round "05"]
[TimeControl "180+1"]
[Date "2022.02.22"]
[WhiteClock "0:00:53"]
[BlackClock "0:00:01"]

1. c4 {[%clk 0:02:56]}  f5 {[%clk 0:01:35]} 2. d4 {[%clk 0:02:50]}  Nf6 {[%clk 0:01:35]} 3. Nf3 {[%clk 0:02:50]}  e6 {[%clk 0:01:34]} 4. g3 {[%clk 0:02:51]}  Be7 {[%clk 0:01:34]} 5. Bg2 {[%clk 0:02:51]}  O-O {[%clk 0:01:35]} 6. O-O {[%clk 0:02:52]}  d6 {[%clk 0:01:35]} 7. Nc3 {[%clk 0:02:48]}  Ne4 {[%clk 0:01:35]} 8. Qc2 {[%clk 0:02:45]}  Nxc3 {[%clk 0:01:35]} 9. bxc3 {[%clk 0:02:41]}  Bf6 {[%clk 0:01:36]} 10. e4 {[%clk 0:02:41]}  e5 {[%clk 0:01:33]} 11. exf5 {[%clk 0:02:39]}  Qe8 {[%clk 0:01:33]} 12. h3 {[%clk 0:02:28]}  Nc6 {[%clk 0:01:31]} 13. Re1 {[%clk 0:02:26]}  Qf7 {[%clk 0:01:26]} 14. Nxe5 {[%clk 0:02:11]}  dxe5 {[%clk 0:01:07]} 15. Bd5 {[%clk 0:02:10]}  exd4 {[%clk 0:01:05]} 16. Ba3 {[%clk 0:02:03]}  Rd8 {[%clk 0:00:47]} 17. Bxf7+ {[%clk 0:02:01]}  Kxf7 {[%clk 0:00:48]} 18. Qe2 {[%clk 0:01:55]}  Bxf5 {[%clk 0:00:42]} 19. Qf3 {[%clk 0:01:51]}  Bg6 {[%clk 0:00:36]} 20. cxd4 {[%clk 0:01:46]}  Nxd4 {[%clk 0:00:33]} 21. Qxb7 {[%clk 0:01:46]}  Kg8 {[%clk 0:00:26]} 22. Be7 {[%clk 0:01:29]}  Rdb8 {[%clk 0:00:20]} 23. Qd5+ {[%clk 0:01:20]}  Bf7 {[%clk 0:00:19]} 24. Qd7 {[%clk 0:01:12]}  Nc2 {[%clk 0:00:14]} 25. Bxf6 {[%clk 0:01:11]}  gxf6 {[%clk 0:00:14]} 26. Re7 {[%clk 0:01:09]}  Rd8 {[%clk 0:00:12]} 27. Qg4+ {[%clk 0:01:08]}  Kf8 {[%clk 0:00:11]} 28. Rxf7+ {[%clk 0:01:02]}  Kxf7 {[%clk 0:00:11]} 29. Qh5+ {[%clk 0:01:01]}  Kf8 {[%clk 0:00:11]} 30. Rd1 {[%clk 0:00:54]}  Nd4 {[%clk 0:00:06]} 31. Qc5+ {[%clk 0:00:53]}  Rd6 {[%clk 0:00:01]} 32. Rxd4 {[%clk 0:00:53]} 1-0


[Site "https://www.chess.com"]

[Event "Titled Tuesday Blitz February 22 Early 2022"]
[White "Prohorov, Olexandr"]
[Black "Ozates, Tuna"]
[WhiteFideId "14105578"]
[BlackFideId "6354521"]
[WhiteElo "1993"]
[BlackElo "1872"]
[Result "0-1"]
[Round "05"]
[TimeControl "180+1"]
[Date "2022.02.22"]
[WhiteClock "0:00:06"]
[BlackClock "0:01:29"]

1. e4 {[%clk 0:03:00]}  e5 {[%clk 0:03:00]} 2. Nf3 {[%clk 0:02:57]}  Nc6 {[%clk 0:03:00]} 3. Bb5 {[%clk 0:02:54]}  d6 {[%clk 0:02:58]} 4. d4 {[%clk 0:02:53]}  exd4 {[%clk 0:02:57]} 5. Nxd4 {[%clk 0:02:52]}  Bd7 {[%clk 0:02:57]} 6. Nc3 {[%clk 0:02:50]}  Nf6 {[%clk 0:02:55]} 7. O-O {[%clk 0:02:50]}  Be7 {[%clk 0:02:54]} 8. Re1 {[%clk 0:02:47]}  O-O {[%clk 0:02:54]} 9. Bf4 {[%clk 0:02:46]}  Nxd4 {[%clk 0:02:48]} 10. Qxd4 {[%clk 0:02:44]}  a6 {[%clk 0:02:34]} 11. Bxd7 {[%clk 0:02:36]}  Nxd7 {[%clk 0:02:28]} 12. Rad1 {[%clk 0:02:35]}  Bf6 {[%clk 0:02:24]} 13. Qd2 {[%clk 0:02:24]}  Nb6 {[%clk 0:02:16]} 14. b3 {[%clk 0:02:19]}  Qd7 {[%clk 0:02:15]} 15. Nd5 {[%clk 0:02:12]}  Nxd5 {[%clk 0:02:10]} 16. Qxd5 {[%clk 0:02:11]}  Qb5 {[%clk 0:02:08]} 17. c4 {[%clk 0:02:05]}  Qb6 {[%clk 0:02:01]} 18. Be3 {[%clk 0:01:38]}  Qc6 {[%clk 0:01:58]} 19. Qxc6 {[%clk 0:01:24]}  bxc6 {[%clk 0:01:59]} 20. c5 {[%clk 0:01:21]}  Rfd8 {[%clk 0:01:45]} 21. f4 {[%clk 0:01:09]}  d5 {[%clk 0:01:44]} 22. e5 {[%clk 0:01:00]}  Be7 {[%clk 0:01:43]} 23. Bd4 {[%clk 0:00:53]}  a5 {[%clk 0:01:43]} 24. Rd3 {[%clk 0:00:43]}  Rdb8 {[%clk 0:01:41]} 25. a3 {[%clk 0:00:35]}  Rb5 {[%clk 0:01:39]} 26. Rc1 {[%clk 0:00:25]}  Rab8 {[%clk 0:01:37]} 27. Rcc3 {[%clk 0:00:25]}  g6 {[%clk 0:01:33]} 28. Kf2 {[%clk 0:00:23]}  h5 {[%clk 0:01:33]} 29. Ke2 {[%clk 0:00:19]}  Kf8 {[%clk 0:01:32]} 30. Kd2 {[%clk 0:00:17]}  Ke8 {[%clk 0:01:33]} 31. Kc2 {[%clk 0:00:16]}  Kd7 {[%clk 0:01:32]} 32. Rh3 {[%clk 0:00:13]}  Ke6 {[%clk 0:01:32]} 33. Rhf3 {[%clk 0:00:07]}  Kf5 {[%clk 0:01:32]} 34. h3 {[%clk 0:00:06]}  Ke4 {[%clk 0:01:29]} 0-1


[Site "https://www.chess.com"]

[Event "Titled Tuesday Blitz February 22 Early 2022"]
[White "Przybylski, Wojciech"]
[Black "Urazayev, Arystanbek"]
[WhiteFideId "1117599"]
[BlackFideId "13709810"]
[WhiteElo "2133"]
[BlackElo "2321"]
[Result "0-1"]
[Round "05"]
[TimeControl "180+1"]
[Date "2022.02.22"]
[WhiteClock "0:00:02"]
[BlackClock "0:00:32"]

1. e4 {[%clk 0:03:00]}  c5 {[%clk 0:03:00]} 2. Nf3 {[%clk 0:03:00]}  e6 {[%clk 0:03:01]} 3. b3 {[%clk 0:02:59]}  b6 {[%clk 0:02:56]} 4. Bb2 {[%clk 0:02:58]}  Bb7 {[%clk 0:02:57]} 5. Qe2 {[%clk 0:02:59]}  Nf6 {[%clk 0:02:52]} 6. e5 {[%clk 0:02:59]}  Nd5 {[%clk 0:02:52]} 7. Nc3 {[%clk 0:02:57]}  Be7 {[%clk 0:02:45]} 8. O-O-O {[%clk 0:02:56]}  O-O {[%clk 0:02:37]} 9. Ne4 {[%clk 0:02:54]}  Nc6 {[%clk 0:02:27]} 10. d4 {[%clk 0:02:48]}  cxd4 {[%clk 0:02:27]} 11. Nxd4 {[%clk 0:02:45]}  Nxe5 {[%clk 0:02:25]} 12. Nxe6 {[%clk 0:02:17]}  fxe6 {[%clk 0:02:17]} 13. Bxe5 {[%clk 0:02:17]}  Ba3+ {[%clk 0:02:18]} 14. Kb1 {[%clk 0:02:12]}  Rc8 {[%clk 0:02:07]} 15. Qg4 {[%clk 0:01:53]}  Qe7 {[%clk 0:02:01]} 16. Bd3 {[%clk 0:01:43]}  d6 {[%clk 0:01:51]} 17. Ba1 {[%clk 0:00:41]}  Nf4 {[%clk 0:01:46]} 18. Ng5 {[%clk 0:00:10]}  h6 {[%clk 0:01:44]} 19. Nh7 {[%clk 0:00:04]}  Nxd3 {[%clk 0:00:59]} 20. Nxf8 {[%clk 0:00:03]}  Nxf2 {[%clk 0:00:59]} 21. Qxe6+ {[%clk 0:00:03]}  Kxf8 {[%clk 0:00:58]} 22. Qxe7+ {[%clk 0:00:02]}  Kxe7 {[%clk 0:00:59]} 23. Rhe1+ {[%clk 0:00:02]}  Kd7 {[%clk 0:00:56]} 24. Rd4 {[%clk 0:00:02]}  g5 {[%clk 0:00:45]} 25. Rf1 {[%clk 0:00:02]}  Bc5 {[%clk 0:00:37]} 26. Rd2 {[%clk 0:00:02]}  Ne4 {[%clk 0:00:36]} 27. Re2 {[%clk 0:00:02]}  d5 {[%clk 0:00:32]} 28. c3 {[%clk 0:00:02]}  Ba6 {[%clk 0:00:31]} 29. Rf7+ {[%clk 0:00:01]}  Ke6 {[%clk 0:00:31]} 30. Rxe4+ {[%clk 0:00:01]}  dxe4 {[%clk 0:00:31]} 31. Rxa7 {[%clk 0:00:01]}  Bd3+ {[%clk 0:00:31]} 32. Kb2 {[%clk 0:00:01]}  Be3 {[%clk 0:00:31]} 33. b4 {[%clk 0:00:02]}  Bd2 {[%clk 0:00:32]} 34. Rg7 {[%clk 0:00:02]}  Bxc3+ {[%clk 0:00:31]} 35. Kb3 {[%clk 0:00:02]}  Bxg7 {[%clk 0:00:32]} 0-1


[Site "https://www.chess.com"]

[Event "Titled Tuesday Blitz February 22 Early 2022"]
[White "Quirke, Jeffrey"]
[Black "Dounis, Alexandros"]
[WhiteFideId "2013029"]
[BlackFideId "4213238"]
[WhiteElo "2212"]
[BlackElo "2195"]
[Result "1/2-1/2"]
[Round "05"]
[TimeControl "180+1"]
[Date "2022.02.22"]
[WhiteClock "0:01:27"]
[BlackClock "0:01:34"]

1. c4 {[%clk 0:03:00]}  e5 {[%clk 0:02:59]} 2. g3 {[%clk 0:02:59]}  Nf6 {[%clk 0:02:54]} 3. Bg2 {[%clk 0:03:00]}  Bc5 {[%clk 0:02:52]} 4. e3 {[%clk 0:02:55]}  d6 {[%clk 0:02:50]} 5. Ne2 {[%clk 0:02:55]}  O-O {[%clk 0:02:48]} 6. O-O {[%clk 0:02:55]}  a6 {[%clk 0:02:47]} 7. d4 {[%clk 0:02:54]}  Ba7 {[%clk 0:02:46]} 8. Nbc3 {[%clk 0:02:51]}  Nc6 {[%clk 0:02:43]} 9. b3 {[%clk 0:02:39]}  Re8 {[%clk 0:02:36]} 10. Bb2 {[%clk 0:02:38]}  Bf5 {[%clk 0:02:33]} 11. Nd5 {[%clk 0:02:30]}  exd4 {[%clk 0:02:24]} 12. Nxd4 {[%clk 0:02:21]}  Nxd4 {[%clk 0:02:22]} 13. Bxd4 {[%clk 0:02:20]}  Bxd4 {[%clk 0:02:20]} 14. Qxd4 {[%clk 0:02:18]}  Nxd5 {[%clk 0:02:19]} 15. cxd5 {[%clk 0:02:18]}  Qe7 {[%clk 0:02:12]} 16. Rac1 {[%clk 0:02:17]}  Rac8 {[%clk 0:02:11]} 17. Rc3 {[%clk 0:02:07]}  Be4 {[%clk 0:02:05]} 18. Rfc1 {[%clk 0:02:00]}  Bxg2 {[%clk 0:02:05]} 19. Kxg2 {[%clk 0:02:00]}  Qd7 {[%clk 0:01:58]} 20. Qa7 {[%clk 0:01:54]}  Qb5 {[%clk 0:01:56]} 21. Rxc7 {[%clk 0:01:26]}  Qxd5+ {[%clk 0:01:55]} 22. Kg1 {[%clk 0:01:26]}  Rxc7 {[%clk 0:01:42]} 23. Rxc7 {[%clk 0:01:27]}  Qd1+ {[%clk 0:01:38]} 24. Kg2 {[%clk 0:01:27]}  Qd5+ {[%clk 0:01:39]} 25. Kg1 {[%clk 0:01:27]}  Qd1+ {[%clk 0:01:39]} 26. Kg2 {[%clk 0:01:27]}  Qd5+ {[%clk 0:01:34]} 27. Kg1 {[%clk 0:01:27]} 1/2-1/2


[Site "https://www.chess.com"]

[Event "Titled Tuesday Blitz February 22 Early 2022"]
[White "Reprintsev, Alexander"]
[Black "volunteers1998"]
[WhiteFideId "14100541"]
[WhiteElo "2126"]
[BlackElo "2264"]
[Result "1/2-1/2"]
[Round "05"]
[TimeControl "180+1"]
[Date "2022.02.22"]
[WhiteClock "0:01:56"]
[BlackClock "0:00:18"]

1. e4 {[%clk 0:02:51]}  c5 {[%clk 0:02:57]} 2. b3 {[%clk 0:02:51]}  Nc6 {[%clk 0:02:53]} 3. Bb2 {[%clk 0:02:50]}  e5 {[%clk 0:02:51]} 4. f4 {[%clk 0:02:49]}  exf4 {[%clk 0:02:48]} 5. Qf3 {[%clk 0:02:46]}  Nf6 {[%clk 0:02:45]} 6. Qxf4 {[%clk 0:02:46]}  Be7 {[%clk 0:02:39]} 7. e5 {[%clk 0:02:43]}  Nd5 {[%clk 0:02:35]} 8. Qe4 {[%clk 0:02:43]}  Nb6 {[%clk 0:02:32]} 9. Nf3 {[%clk 0:02:40]}  O-O {[%clk 0:02:28]} 10. Bd3 {[%clk 0:02:39]}  g6 {[%clk 0:02:25]} 11. O-O {[%clk 0:02:39]}  d5 {[%clk 0:02:17]} 12. exd6 {[%clk 0:02:29]}  Qxd6 {[%clk 0:02:11]} 13. Ne5 {[%clk 0:02:24]}  Be6 {[%clk 0:01:53]} 14. Nxc6 {[%clk 0:02:23]}  Qxc6 {[%clk 0:01:51]} 15. Qxc6 {[%clk 0:02:23]}  bxc6 {[%clk 0:01:50]} 16. c4 {[%clk 0:02:19]}  Rad8 {[%clk 0:01:47]} 17. Be4 {[%clk 0:02:18]}  f5 {[%clk 0:01:34]} 18. Bxc6 {[%clk 0:02:16]}  Bf6 {[%clk 0:01:31]} 19. Bxf6 {[%clk 0:02:15]}  Rxf6 {[%clk 0:01:28]} 20. Bf3 {[%clk 0:02:14]}  Bd7 {[%clk 0:01:20]} 21. Rd1 {[%clk 0:02:13]}  Bc6 {[%clk 0:01:18]} 22. Bxc6 {[%clk 0:02:12]}  Rxc6 {[%clk 0:01:16]} 23. a3 {[%clk 0:02:06]}  Rcd6 {[%clk 0:01:11]} 24. Ra2 {[%clk 0:02:06]}  Rd3 {[%clk 0:01:08]} 25. Nc3 {[%clk 0:02:06]}  Rxc3 {[%clk 0:01:06]} 26. dxc3 {[%clk 0:02:05]}  Rxd1+ {[%clk 0:01:04]} 27. Kf2 {[%clk 0:02:06]}  Rb1 {[%clk 0:00:58]} 28. b4 {[%clk 0:02:05]}  cxb4 {[%clk 0:00:57]} 29. axb4 {[%clk 0:02:05]}  Nxc4 {[%clk 0:00:55]} 30. Rxa7 {[%clk 0:02:05]}  Rc1 {[%clk 0:00:52]} 31. Rc7 {[%clk 0:02:04]}  Rxc3 {[%clk 0:00:49]} 32. b5 {[%clk 0:02:04]}  Rc2+ {[%clk 0:00:47]} 33. Ke1 {[%clk 0:02:03]}  Rxg2 {[%clk 0:00:37]} 34. Rxc4 {[%clk 0:02:02]}  Rb2 {[%clk 0:00:35]} 35. Rc5 {[%clk 0:01:54]}  Rxh2 {[%clk 0:00:33]} 36. Kd1 {[%clk 0:01:55]}  Rb2 {[%clk 0:00:30]} 37. Kc1 {[%clk 0:01:55]}  Rb4 {[%clk 0:00:29]} 38. Kc2 {[%clk 0:01:56]}  f4 {[%clk 0:00:24]} 39. Kc3 {[%clk 0:01:56]}  Rb1 {[%clk 0:00:24]} 40. Kc2 {[%clk 0:01:56]}  Rb4 {[%clk 0:00:21]} 41. Kc3 {[%clk 0:01:56]}  Rb1 {[%clk 0:00:19]} 42. Kc2 {[%clk 0:01:56]}  Rb4 {[%clk 0:00:18]} 1/2-1/2


[Site "https://www.chess.com"]

[Event "Titled Tuesday Blitz February 22 Early 2022"]
[White "Roberson, Peter T"]
[Black "Moskvin, Anatoly"]
[WhiteFideId "412384"]
[BlackFideId "24199990"]
[WhiteElo "2346"]
[BlackElo "2079"]
[Result "0-1"]
[Round "05"]
[TimeControl "180+1"]
[Date "2022.02.22"]
[WhiteClock "0:00:06"]
[BlackClock "0:00:04"]

1. e4 {[%clk 0:03:00]}  e5 {[%clk 0:02:59]} 2. Nf3 {[%clk 0:03:01]}  d5 {[%clk 0:02:58]} 3. Nxe5 {[%clk 0:02:54]}  dxe4 {[%clk 0:02:57]} 4. d4 {[%clk 0:02:53]}  Bd6 {[%clk 0:02:57]} 5. Nc3 {[%clk 0:02:51]}  Nf6 {[%clk 0:02:34]} 6. Bg5 {[%clk 0:02:50]}  Bf5 {[%clk 0:02:34]} 7. f3 {[%clk 0:02:41]}  Bxe5 {[%clk 0:02:04]} 8. dxe5 {[%clk 0:02:40]}  Qxd1+ {[%clk 0:02:05]} 9. Rxd1 {[%clk 0:02:39]}  Nfd7 {[%clk 0:02:04]} 10. Nxe4 {[%clk 0:02:27]}  Bxe4 {[%clk 0:02:03]} 11. fxe4 {[%clk 0:02:27]}  O-O {[%clk 0:01:52]} 12. e6 {[%clk 0:02:23]}  fxe6 {[%clk 0:01:46]} 13. Bc4 {[%clk 0:02:23]}  Re8 {[%clk 0:01:23]} 14. O-O {[%clk 0:01:55]}  Ne5 {[%clk 0:01:20]} 15. Bb3 {[%clk 0:01:55]}  Nbd7 {[%clk 0:01:05]} 16. Bf4 {[%clk 0:01:35]}  a5 {[%clk 0:00:59]} 17. a3 {[%clk 0:01:34]}  a4 {[%clk 0:00:57]} 18. Ba2 {[%clk 0:01:34]}  Ra6 {[%clk 0:00:50]} 19. Rd4 {[%clk 0:01:34]}  c5 {[%clk 0:00:39]} 20. Rd2 {[%clk 0:01:26]}  Rb6 {[%clk 0:00:16]} 21. c3 {[%clk 0:01:25]}  c4 {[%clk 0:00:16]} 22. Rfd1 {[%clk 0:01:23]}  Re7 {[%clk 0:00:14]} 23. Kf2 {[%clk 0:00:58]}  Nd3+ {[%clk 0:00:12]} 24. Ke3 {[%clk 0:00:51]}  Nxf4 {[%clk 0:00:07]} 25. Kxf4 {[%clk 0:00:52]}  Rf7+ {[%clk 0:00:07]} 26. Ke3 {[%clk 0:00:52]}  Ne5 {[%clk 0:00:08]} 27. h3 {[%clk 0:00:19]}  g5 {[%clk 0:00:08]} 28. Rf2 {[%clk 0:00:13]}  Rxf2 {[%clk 0:00:07]} 29. Kxf2 {[%clk 0:00:14]}  Rxb2+ {[%clk 0:00:07]} 30. Ke3 {[%clk 0:00:13]}  Rxa2 {[%clk 0:00:08]} 31. Rb1 {[%clk 0:00:13]}  Rxg2 {[%clk 0:00:06]} 32. Rxb7 {[%clk 0:00:13]}  Rg3+ {[%clk 0:00:06]} 33. Kd4 {[%clk 0:00:14]}  Nf3+ {[%clk 0:00:06]} 34. Kc5 {[%clk 0:00:14]}  Rxh3 {[%clk 0:00:06]} 35. Kd6 {[%clk 0:00:13]}  g4 {[%clk 0:00:06]} 36. Kxe6 {[%clk 0:00:14]}  Rh6+ {[%clk 0:00:05]} 37. Kf5 {[%clk 0:00:14]}  g3 {[%clk 0:00:05]} 38. Rb8+ {[%clk 0:00:05]}  Kf7 {[%clk 0:00:04]} 39. Rb7+ {[%clk 0:00:06]}  Ke8 {[%clk 0:00:04]} 40. Rg7 {[%clk 0:00:04]}  Rg6 {[%clk 0:00:03]} 41. Rxh7 {[%clk 0:00:05]}  g2 {[%clk 0:00:03]} 42. Kxg6 {[%clk 0:00:05]}  g1=Q+ {[%clk 0:00:03]} 43. Kf5 {[%clk 0:00:06]}  Qg5+ {[%clk 0:00:04]} 44. Ke6 {[%clk 0:00:06]}  Qe5# {[%clk 0:00:04]} 0-1


[Site "https://www.chess.com"]

[Event "Titled Tuesday Blitz February 22 Early 2022"]
[White "Sellitti, Federico"]
[Black "Kamsky, Gata"]
[WhiteFideId "821829"]
[BlackFideId "2000024"]
[WhiteElo "2600"]
[BlackElo "2645"]
[Result "0-1"]
[Round "05"]
[TimeControl "180+1"]
[Date "2022.02.22"]
[WhiteClock "0:00:04"]
[BlackClock "0:00:45"]

1. e4 {[%clk 0:02:52]}  c5 {[%clk 0:02:57]} 2. Nc3 {[%clk 0:02:52]}  e6 {[%clk 0:02:56]} 3. g3 {[%clk 0:02:53]}  a6 {[%clk 0:02:53]} 4. Bg2 {[%clk 0:02:53]}  b5 {[%clk 0:02:53]} 5. d3 {[%clk 0:02:54]}  Bb7 {[%clk 0:02:52]} 6. f4 {[%clk 0:02:54]}  d5 {[%clk 0:02:36]} 7. exd5 {[%clk 0:02:47]}  Nf6 {[%clk 0:02:33]} 8. Nf3 {[%clk 0:02:44]}  Nxd5 {[%clk 0:02:27]} 9. Nxd5 {[%clk 0:02:45]}  Bxd5 {[%clk 0:02:25]} 10. O-O {[%clk 0:02:45]}  Be7 {[%clk 0:02:22]} 11. Bd2 {[%clk 0:02:39]}  O-O {[%clk 0:02:21]} 12. a3 {[%clk 0:02:40]}  Bf6 {[%clk 0:02:17]} 13. Rb1 {[%clk 0:02:27]}  Nc6 {[%clk 0:02:14]} 14. Qe1 {[%clk 0:02:11]}  c4 {[%clk 0:02:13]} 15. Bc3 {[%clk 0:01:51]}  cxd3 {[%clk 0:02:12]} 16. cxd3 {[%clk 0:01:52]}  Bxf3 {[%clk 0:02:07]} 17. Bxf6 {[%clk 0:01:39]}  Qxf6 {[%clk 0:02:05]} 18. Bxf3 {[%clk 0:01:38]}  Rac8 {[%clk 0:02:04]} 19. Bxc6 {[%clk 0:01:28]}  Rxc6 {[%clk 0:02:02]} 20. Qe5 {[%clk 0:01:28]}  Qd8 {[%clk 0:01:53]} 21. Rf3 {[%clk 0:01:00]}  Rd6 {[%clk 0:01:50]} 22. f5 {[%clk 0:00:56]}  Rd5 {[%clk 0:01:49]} 23. Qe4 {[%clk 0:00:50]}  exf5 {[%clk 0:01:49]} 24. Rxf5 {[%clk 0:00:49]}  Rxd3 {[%clk 0:01:47]} 25. Rbf1 {[%clk 0:00:50]}  Qd4+ {[%clk 0:01:43]} 26. Qxd4 {[%clk 0:00:50]}  Rxd4 {[%clk 0:01:43]} 27. Rc1 {[%clk 0:00:47]}  Rd7 {[%clk 0:01:34]} 28. Rc6 {[%clk 0:00:44]}  Ra8 {[%clk 0:01:33]} 29. Rfc5 {[%clk 0:00:43]}  g6 {[%clk 0:01:24]} 30. b4 {[%clk 0:00:43]}  Rd3 {[%clk 0:01:14]} 31. Rc3 {[%clk 0:00:43]}  Rd1+ {[%clk 0:01:10]} 32. Kg2 {[%clk 0:00:43]}  Rd2+ {[%clk 0:01:11]} 33. Kf3 {[%clk 0:00:35]}  Kg7 {[%clk 0:01:08]} 34. h4 {[%clk 0:00:30]}  h5 {[%clk 0:01:05]} 35. Re3 {[%clk 0:00:18]}  a5 {[%clk 0:01:00]} 36. Rb6 {[%clk 0:00:16]}  Rd5 {[%clk 0:00:58]} 37. Rc3 {[%clk 0:00:15]}  axb4 {[%clk 0:00:58]} 38. axb4 {[%clk 0:00:16]}  Rf5+ {[%clk 0:00:56]} 39. Kg2 {[%clk 0:00:08]}  Ra4 {[%clk 0:00:56]} 40. Rc5 {[%clk 0:00:07]}  Rxb4 {[%clk 0:00:55]} 41. Rxf5 {[%clk 0:00:05]}  gxf5 {[%clk 0:00:55]} 42. Kf3 {[%clk 0:00:05]}  f6 {[%clk 0:00:48]} 43. Rb8 {[%clk 0:00:03]}  Kg6 {[%clk 0:00:48]} 44. Rg8+ {[%clk 0:00:03]}  Kh7 {[%clk 0:00:46]} 45. Rb8 {[%clk 0:00:04]}  Kg7 {[%clk 0:00:45]} 46. Rb7+ {[%clk 0:00:03]}  Kg6 {[%clk 0:00:45]} 47. Rb8 {[%clk 0:00:04]}  f4 {[%clk 0:00:45]} 48. gxf4 {[%clk 0:00:04]}  Kf5 {[%clk 0:00:45]} 49. Kg3 {[%clk 0:00:04]}  Rb3+ {[%clk 0:00:45]} 50. Kg2 {[%clk 0:00:05]}  Kxf4 {[%clk 0:00:45]} 51. Rh8 {[%clk 0:00:04]}  Kg4 {[%clk 0:00:45]} 52. Rf8 {[%clk 0:00:04]}  f5 {[%clk 0:00:45]} 0-1


[Site "https://www.chess.com"]